bitfinex-derivatives/quotes_SOLF0:USTF0_20250929
["timestamp","ask_amount","ask_price","bid_price","bid_amount"]
[1759137689206,4.315,208.52,208.46,7.87]
[1759137694413,4.11,208.53,208.42,2.023329]
[1759137694414,4.11,208.53,208.43,7.87]
[1759137694712,4.11,208.53,208.46,7.87]
[1759137695602,4.11,208.53,208.49,7.87]
[1759137695801,4.11,208.53,208.48,4.3157]
[1759137696213,4.11,208.53,208.49,7.87]
[1759137696910,4.11,208.53,208.48,4.3157]
[1759137697508,4.11,208.53,208.49,7.87]
[1759137697708,4.11,208.53,208.48,4.3157]
[1759137698108,4.11,208.53,208.49,7.87]
[1759137698913,4.11,208.53,208.48,4.3157]
[1759137699115,4.11,208.53,208.49,7.87]
[1759137699307,4.11,208.53,208.48,4.3157]
[1759137700111,4.11,208.53,208.49,7.87]
[1759137700616,4.11,208.53,208.48,4.3157]
[1759137700804,4.3146,208.54,208.48,4.3157]
[1759137701009,4.3146,208.54,208.49,7.87]
[1759137701406,4.3146,208.54,208.45,2.023329]
[1759137701407,4.3142,208.56,208.46,67.1413]
[1759137701710,4.11,208.58,208.49,7.87]
[1759137702715,8.4238,208.58,208.52,4.3149]
[1759137702914,8.4238,208.58,208.52,12.1849]
[1759137703110,8.4238,208.58,208.52,4.3149]
[1759137703313,4.3138,208.58,208.52,4.3149]
[1759137703514,8.4238,208.58,208.52,12.1849]
[1759137704612,8.4238,208.58,208.53,4.3147]
[1759137705115,4.3134,208.6,208.54,7.87]
[1759137705711,4.3134,208.6,208.54,12.1844]
[1759137705916,4.3134,208.6,208.51,2.023329]
[1759137706218,4.11,208.61,208.55,7.87]
[1759137707624,4.11,208.61,208.57,7.87]
[1759137708317,4.313,208.62,208.56,7.87]
[1759137709421,4.11,208.62,208.55,7.87]
[1759137710624,4.11,208.62,208.54,7.87]
[1759137710921,1.2926164,208.63,208.54,7.87]
[1759137711618,4.3129,208.62,208.56,7.87]
[1759137711821,1.2926164,208.63,208.56,7.87]
[1759137712022,4.11,208.66,208.58,7.87]
[1759137712824,4.3124,208.65,208.59,4.3133]
[1759137713021,4.3124,208.65,208.6,7.87]
[1759137713228,4.3124,208.65,208.59,4.3133]
[1759137713416,4.3124,208.65,208.6,7.87]
[1759137713617,4.3124,208.65,208.59,4.3133]
[1759137713821,4.3124,208.65,208.6,8.03]
[1759137714125,4.3124,208.65,208.59,4.3133]
[1759137714324,4.3124,208.65,208.6,8.03]
[1759137714626,4.3124,208.65,208.59,4.3133]
[1759137715023,4.3124,208.65,208.6,8.03]
[1759137715226,4.3124,208.65,208.58,8.03]
[1759137716630,4.3124,208.65,208.58,12.3436]
[1759137717626,4.3124,208.65,208.59,8.03]
[1759137717924,4.1,208.66,208.59,8.03]
[1759137718429,4.1,208.66,208.6,8.03]
[1759137720231,4.1,208.66,208.6,22.69338489]
[1759137720926,2.023329,208.69,208.6,14.66338489]
[1759137721131,4.1,208.65,208.49,358.97882329]
[1759137721323,4.1,208.62,208.5,8.03]
[1759137721527,69.111429,208.63,208.5,8.03]
[1759137721726,8.4134,208.6,208.51,8.03]
[1759137722734,8.4134,208.6,208.52,8.03]
[1759137723840,4.3137,208.59,208.52,8.03]
[1759137724130,4.1,208.6,208.52,8.03]
[1759137724330,4.1,208.6,208.52,12.3449]
[1759137724634,4.1,208.64,208.53,8.03]
[1759137725723,4.3128,208.63,208.56,8.03]
[1759137726231,4.3128,208.63,208.56,12.3441]
[1759137729837,4.1,208.64,208.56,4.3141]
[1759137730136,4.1,208.67,208.59,8.03]
[1759137731637,8.412,208.67,208.59,12.3434]
[1759137731939,4.1,208.67,208.59,12.3434]
[1759137732233,4.1,208.69,208.59,8.03]
[1759137732439,4.3126,208.64,208.59,8.03]
[1759137732634,4.1,208.63,208.59,8.03]
[1759137732836,4.1,208.63,208.57,4.3139]
[1759137733038,4.1,208.63,208.58,7.27]
[1759137733237,4.1,208.63,208.57,4.3139]
[1759137733438,4.1,208.63,208.58,7.27]
[1759137734240,4.1,208.63,208.57,5.60765346]
[1759137734444,4.3126,208.64,208.58,7.27]
[1759137742653,4.3126,208.64,208.58,11.5837]
[1759137743952,8.3821,208.66,208.6,4.3134]
[1759137744154,8.3821,208.66,208.6,12.2534]
[1759137747057,67.0601,208.72,208.58,5.60745346]
[1759137747058,4.3125,208.65,208.58,5.60745346]
[1759137747255,4.1,208.64,208.58,5.60745346]
[1759137748453,8.4126,208.64,208.6,7.94]
[1759137748649,8.4126,208.64,208.59,4.3135]
[1759137749354,4.1,208.71,208.61,7.94]
[1759137749559,1.29375346,208.69,208.61,7.94]
[1759137749760,7.46269034,208.68,208.61,7.94]
[1759137750058,4.1,208.68,208.61,7.94]
[1759137750359,4.3121,208.67,208.61,7.94]
[1759137750558,4.1,208.68,208.61,7.94]
[1759137750753,3.3632833,208.67,208.61,7.94]
[1759137751154,4.1,208.68,208.61,7.94]
[1759137751360,4.65718803,208.67,208.61,7.94]
[1759137751559,8.4122,208.66,208.6,7.94]
[1759137752757,4.1,208.66,208.6,7.94]
[1759137752952,8.4126,208.64,208.58,1.29375346]
[1759137753657,8.4126,208.64,208.57,12.2539]
[1759137753858,8.4126,208.64,208.58,7.94]
[1759137754564,4.1,208.64,208.59,7.94]
[1759137754958,4.1,208.67,208.59,7.94]
[1759137755652,4.3124,208.65,208.59,12.2534]
[1759137759660,4.3126,208.64,208.59,4.3134]
[1759137759865,4.1,208.63,208.58,1.29375346]
[1759137760165,4.3126,208.64,208.58,1.29375346]
[1759137760359,8.4126,208.64,208.58,1.29375346]
[1759137760762,8.4126,208.64,208.59,7.94]
[1759137760960,4.1,208.65,208.58,7.94]
[1759137761164,4.1,208.63,208.56,7.94]
[1759137761365,1.29375346,208.66,208.56,7.94]
[1759137761562,3.36495019,208.65,208.56,7.94]
[1759137761763,8.75870365,208.64,208.56,7.94]
[1759137761964,4.1,208.63,208.56,7.94]
[1759137762667,4.3133,208.61,208.56,7.94]
[1759137762872,4.3133,208.61,208.55,5.60805346]
[1759137763171,4.3133,208.61,208.56,7.94]
[1759137763361,4.3133,208.61,208.55,5.60805346]
[1759137763568,8.4126,208.64,208.56,7.94]
[1759137763767,4.1,208.64,208.56,7.94]
[1759137764269,4.3128,208.63,208.56,12.2541]
[1759137764671,4.313,208.62,208.56,12.2541]
[1759137765573,4.313,208.62,208.55,1.29375346]
[1759137765574,4.3133,208.61,208.55,9.23375346]
[1759137767162,4.3133,208.61,208.55,13.54805346]
[1759137768076,4.1,208.62,208.58,7.94]
[1759137768573,4.1,208.62,208.57,1.29375346]
[1759137768871,8.4127,208.63,208.57,1.29375346]
[1759137769067,8.4127,208.63,208.57,9.23375346]
[1759137769473,8.4127,208.63,208.57,13.54765346]
[1759137773374,8.4127,208.63,208.57,12.2539]
[1759137773571,8.4127,208.63,208.57,13.54765346]
[1759137775273,4.1,208.63,208.57,9.23375346]
[1759137775476,4.1,208.65,208.55,13.44805346]
[1759137775680,4.1,208.63,208.55,13.44805346]
[1759137776580,4.3131,208.62,208.55,13.44805346]
[1759137776977,4.1,208.63,208.55,13.44805346]
[1759137778482,4.1,208.63,208.56,7.84]
[1759137778681,4.3131,208.61,208.56,7.84]
[1759137778878,4.3131,208.61,208.55,5.60805346]
[1759137779078,8.4131,208.61,208.55,13.44805346]
[1759137779980,8.4131,208.61,208.55,7.84]
[1759137780181,8.4134,208.6,208.55,7.84]
[1759137780488,1.29375346,208.62,208.52,8.07549429]
[1759137780685,1.29375346,208.6,208.53,7.84]
[1759137780885,4.1,208.57,208.49,22.38885001]
[1759137781086,4.1,208.57,208.49,7.84]
[1759137781482,4.3144,208.55,208.49,7.84]
[1759137783384,4.3144,208.55,208.49,22.29247143]
[1759137783989,4.1,208.53,208.49,14.45247143]
[1759137784285,4.1,208.53,208.48,4.3156]
[1759137784587,4.3146,208.54,208.48,4.3156]
[1759137785286,4.3146,208.54,208.47,1.29375346]
[1759137785489,4.1,208.53,208.48,7.84]
[1759137785880,4.3152,208.51,208.44,4.3165]
[1759137786087,4.1,208.49,208.42,7.84]
[1759137786293,4.1,208.49,208.42,22.04694476]
[1759137786589,5.39375346,208.53,208.44,7.84]
[1759137787490,4.3152,208.51,208.44,7.84]
[1759137788091,4.3155,208.5,208.44,7.84]
[1759137793292,4.315,208.52,208.44,1.29375346]
[1759137793497,4.315,208.52,208.45,7.69]
[1759137794595,4.315,208.52,208.45,12.0063]
[1759137796402,4.3153,208.51,208.45,7.69]
[1759137800304,4.3155,208.5,208.44,7.69]
[1759137801205,8.425,208.52,208.44,7.69]
[1759137802004,8.425,208.52,208.45,7.69]
[1759137802706,8.425,208.52,208.45,4.3162]
[1759137802903,8.425,208.52,208.46,7.69]
[1759137803500,4.3153,208.51,208.46,7.69]
[1759137803804,8.4253,208.51,208.45,4.3162]
[1759137804005,8.4253,208.51,208.46,7.89]
[1759137804203,8.4253,208.51,208.45,4.3162]
[1759137804997,8.4253,208.51,208.46,7.89]
[1759137805201,8.4253,208.51,208.45,4.3162]
[1759137806102,8.4253,208.51,208.46,7.89]
[1759137806408,8.4253,208.51,208.45,4.3162]
[1759137806597,4.3153,208.51,208.45,4.3162]
[1759137806802,8.4253,208.51,208.45,4.3162]
[1759137807306,8.4253,208.51,208.46,7.89]
[1759137807609,8.4253,208.51,208.45,4.3162]
[1759137807805,4.3153,208.51,208.45,4.3162]
[1759137808209,8.4253,208.51,208.45,12.2062]
[1759137810006,4.11,208.51,208.45,12.2062]
[1759137810206,4.11,208.51,208.46,7.89]
[1759137810406,4.11,208.51,208.45,4.3162]
[1759137810808,4.11,208.51,208.46,7.89]
[1759137811208,4.11,208.51,208.45,4.3162]
[1759137811707,4.11,208.51,208.46,4.3161]
[1759137811907,8.4245,208.55,208.47,7.89]
[1759137812509,4.11,208.55,208.47,7.89]
[1759137812711,4.314,208.57,208.47,9.91420643]
[1759137812909,4.11,208.58,208.52,7.89]
[1759137813912,4.11,208.61,208.52,7.89]
[1759137814709,4.3136,208.59,208.48,7.89]
[1759137814911,4.3136,208.59,208.5,2.02420643]
[1759137815107,4.3136,208.59,208.51,7.89]
[1759137815309,8.4236,208.59,208.51,7.89]
[1759137815907,4.11,208.59,208.54,7.89]
[1759137816210,4.11,208.59,208.53,4.3147]
[1759137816408,4.11,208.59,208.54,7.89]
[1759137816608,4.11,208.59,208.53,4.3147]
[1759137816909,4.11,208.59,208.54,7.89]
[1759137817311,4.11,208.59,208.53,4.3147]
[1759137817713,4.11,208.62,208.54,7.89]
[1759137818614,4.11,208.62,208.56,7.89]
[1759137819517,4.11,208.62,208.56,12.204]
[1759137822615,8.4224,208.65,208.58,7.89]
[1759137823713,8.4224,208.65,208.58,12.2036]
[1759137825309,4.11,208.65,208.58,12.2036]
[1759137826215,4.11,208.65,208.59,7.89]
[1759137827917,4.11,208.65,208.59,12.2034]
[1759137828119,13.16,208.66,208.6,7.89]
[1759137828819,17.27,208.66,208.6,7.89]
[1759137831017,4.11,208.66,208.6,12.2032]
[1759137831221,8.4215,208.69,208.61,7.89]
[1759137832118,4.11,208.67,208.61,7.89]
[1759137839028,2.02420643,208.71,208.61,7.89]
[1759137839228,2.02420643,208.68,208.61,7.89]
[1759137839528,4.1,208.67,208.61,7.89]
[1759137839729,2.02420643,208.68,208.61,7.89]
[1759137840028,4.1,208.67,208.61,7.89]
[1759137840624,4.1,208.65,208.61,7.89]
[1759137840828,4.3122,208.66,208.61,7.89]
[1759137841627,4.1,208.65,208.61,7.89]
[1759137841825,4.1,208.65,208.58,7.94]
[1759137841826,8.4123,208.65,208.58,7.94]
[1759137842428,4.3126,208.64,208.58,7.94]
[1759137842627,2.02420643,208.68,208.52,7.94]
[1759137842628,2.02420643,208.65,208.52,7.94]
[1759137843230,8.4131,208.61,208.54,7.94]
[1759137843639,8.4131,208.61,208.54,12.2543]
[1759137844032,8.4131,208.61,208.54,7.94]
[1759137844935,4.1,208.61,208.55,4.3141]
[1759137845135,4.1,208.61,208.56,7.94]
[1759137845334,4.1,208.61,208.55,4.3141]
[1759137845735,4.1,208.61,208.56,7.94]
[1759137845935,4.1,208.61,208.55,4.3141]
[1759137846333,8.4128,208.62,208.55,12.2541]
[1759137848042,4.1,208.62,208.55,12.2541]
[1759137848237,4.1,208.62,208.55,7.94]
[1759137848845,6.12420643,208.65,208.53,7.94]
[1759137849542,4.1,208.65,208.58,4.3135]
[1759137849750,4.1,208.65,208.58,7.94]
[1759137851543,4.1,208.65,208.61,4.3129]
[1759137851850,4.1,208.65,208.62,7.94]
[1759137853943,4.3119,208.67,208.61,4.3129]
[1759137854152,4.09,208.66,208.61,4.3129]
[1759137854350,24.22420643,208.7,208.61,4.3129]
[1759137854351,4.09,208.68,208.61,4.3129]
[1759137855145,4.3121,208.66,208.59,11.7534]
[1759137855350,4.09,208.65,208.59,11.7534]
[1759137856350,4.09,208.65,208.6,4.3132]
[1759137856548,4.09,208.65,208.61,7.44]
[1759137856748,4.09,208.65,208.6,4.3132]
[1759137857147,4.09,208.65,208.61,7.44]
[1759137857448,4.09,208.65,208.6,4.3132]
[1759137857648,4.09,208.65,208.61,7.44]
[1759137857848,4.09,208.65,208.6,4.3132]
[1759137858949,4.09,208.65,208.61,7.44]
[1759137859349,4.09,208.65,208.6,4.3132]
[1759137859546,4.09,208.65,208.61,7.44]
[1759137859753,4.09,208.64,208.61,7.44]
[1759137862055,4.09,208.64,208.6,4.3132]
[1759137862242,5.38383415,208.66,208.61,4.3129]
[1759137862446,5.38383415,208.66,208.62,7.44]
[1759137862651,5.38383415,208.66,208.61,4.3129]
[1759137862849,5.38383415,208.66,208.62,7.44]
[1759137863050,5.38383415,208.66,208.61,4.3129]
[1759137863249,4.09,208.65,208.62,7.44]
[1759137864048,4.09,208.65,208.61,4.3129]
[1759137864252,4.09,208.65,208.62,7.63]
[1759137864452,4.09,208.65,208.61,4.3129]
[1759137864654,4.09,208.66,208.61,4.3129]
[1759137864845,4.09,208.66,208.62,7.63]
[1759137865052,4.3119,208.67,208.62,7.63]
[1759137865252,4.3119,208.67,208.63,7.63]
[1759137865253,4.09,208.67,208.63,7.63]
[1759137865752,4.3117,208.68,208.63,7.63]
[1759137865954,4.09,208.67,208.63,7.63]
[1759137866158,4.3117,208.68,208.63,7.63]
[1759137866455,4.09,208.66,208.63,7.63]
[1759137866753,4.09,208.66,208.6,4.3131]
[1759137867555,8.4021,208.66,208.6,4.3131]
[1759137867756,8.4021,208.66,208.61,7.63]
[1759137867951,8.4021,208.66,208.6,4.3131]
[1759137868159,4.3121,208.66,208.61,7.63]
[1759137868450,4.09,208.64,208.58,11.9435]
[1759137868657,4.09,208.64,208.58,7.63]
[1759137869556,4.09,208.64,208.59,4.3134]
[1759137869759,4.09,208.64,208.6,7.63]
[1759137870051,4.09,208.64,208.59,4.3134]
[1759137870253,4.09,208.64,208.6,7.63]
[1759137871859,4.09,208.64,208.59,4.3134]
[1759137872253,4.09,208.64,208.6,7.63]
[1759137872453,4.09,208.64,208.59,4.3134]
[1759137873052,4.09,208.64,208.6,7.63]
[1759137873257,4.3123,208.65,208.61,7.63]
[1759137873453,4.3123,208.65,208.6,4.3132]
[1759137874150,4.3123,208.65,208.62,7.63]
[1759137874353,9.69573415,208.67,208.61,11.943]
[1759137879263,8.4019,208.67,208.61,11.943]
[1759137880462,4.09,208.65,208.62,7.63]
[1759137883171,4.09,208.65,208.61,4.313]
[1759137883571,4.09,208.65,208.62,7.63]
[1759137885073,4.09,208.65,208.6,7.63]
[1759137885673,4.09,208.65,208.6,4.3131]
[1759137886069,4.09,208.65,208.61,7.63]
[1759137886573,4.09,208.65,208.6,4.3131]
[1759137887773,4.09,208.65,208.61,7.63]
[1759137887971,4.09,208.65,208.6,4.3131]
[1759137888369,4.3116,208.68,208.62,7.63]
[1759137888568,4.09,208.66,208.62,7.63]
[1759137888777,4.09,208.66,208.61,4.3129]
[1759137889381,3.36789387,208.67,208.62,8.92383415]
[1759137889581,4.3116,208.68,208.62,8.92383415]
[1759137890578,4.3116,208.68,208.63,4.3125]
[1759137890875,8.4016,208.68,208.64,7.63]
[1759137891075,8.4016,208.68,208.63,4.3125]
[1759137891780,8.4016,208.68,208.64,7.63]
[1759137892182,8.4016,208.68,208.63,4.3125]
[1759137892984,4.3116,208.68,208.63,4.3125]
[1759137893183,7.4507732,208.67,208.64,7.63]
[1759137893385,4.09,208.67,208.64,7.63]
[1759137893586,4.09,208.67,208.63,4.3125]
[1759137893884,4.09,208.67,208.64,7.59]
[1759137894080,4.09,208.67,208.63,4.3125]
[1759137894483,4.09,208.67,208.64,7.59]
[1759137894682,4.09,208.67,208.63,4.3125]
[1759137894979,4.09,208.67,208.64,7.59]
[1759137895185,4.09,208.67,208.63,4.3125]
[1759137895483,4.09,208.67,208.64,7.59]
[1759137895682,4.09,208.67,208.63,4.3125]
[1759137895885,26.28,208.7,208.64,7.59]
[1759137896181,3.36074259,208.69,208.63,4.3125]
[1759137896376,7.44074259,208.68,208.64,7.59]
[1759137896582,26.5112,208.7,208.64,7.59]
[1759137896777,3.36039103,208.69,208.63,4.3125]
[1759137896978,3.36039103,208.68,208.63,4.3125]
[1759137897176,30.5912,208.7,208.64,7.59]
[1759137897379,3.36003847,208.69,208.66,1.29383415]
[1759137897580,3.35974902,208.72,208.67,1.29383415]
[1759137897785,4.08,208.74,208.68,7.59]
[1759137898083,3.3594878,208.73,208.68,7.59]
[1759137898382,3.3594878,208.72,208.68,7.59]
[1759137898582,8.3904,208.74,208.68,7.59]
[1759137898982,4.08,208.74,208.69,1.29383415]
[1759137899190,4.08,208.74,208.7,7.59]
[1759137899685,4.08,208.76,208.71,1.29383415]
[1759137899883,3.35427259,208.77,208.74,7.59]
[1759137900185,8.3895,208.78,208.73,1.29383415]
[1759137900490,4.08,208.78,208.74,7.59]
[1759137900686,1.29383415,208.77,208.66,7.59]
[1759137900883,67.0363,208.78,208.67,8.88383415]
[1759137900884,4.08,208.74,208.67,8.88383415]
[1759137901080,4.08,208.74,208.67,7.59]
[1759137901280,1.29383415,208.71,208.63,14.10208071]
[1759137901480,4.08,208.7,208.62,7.59]
[1759137901785,4.08,208.68,208.62,7.59]
[1759137903591,8.3916,208.68,208.62,7.59]
[1759137904387,8.3916,208.68,208.62,23.4710369]
[1759137904683,8.3916,208.68,208.62,1.29383415]
[1759137905191,4.08,208.67,208.61,7.59]
[1759137905787,1.29383415,208.67,208.59,7.59]
[1759137905993,4.08,208.66,208.59,7.59]
[1759137906992,5.37383415,208.66,208.59,7.59]
[1759137907693,4.3127,208.63,208.59,7.59]
[1759137907895,8.3927,208.63,208.6,7.59]
[1759137908093,4.3127,208.63,208.59,7.59]
[1759137908987,4.3127,208.63,208.58,15.73936959]
[1759137909388,4.3127,208.63,208.59,7.59]
[1759137909587,4.3127,208.63,208.58,15.73936959]
[1759137910089,4.3127,208.63,208.59,7.59]
[1759137910294,4.3122,208.65,208.59,7.59]
[1759137910995,4.3125,208.64,208.59,7.59]
[1759137911388,4.3125,208.64,208.58,15.73936959]
[1759137911796,4.3125,208.64,208.59,7.59]
[1759137911997,4.3125,208.64,208.58,15.73936959]
[1759137912186,4.3125,208.64,208.59,7.59]
[1759137912385,4.3125,208.64,208.58,15.73936959]
[1759137912595,4.3125,208.64,208.59,7.59]
[1759137912795,4.3125,208.64,208.58,15.73936959]
[1759137913297,4.3125,208.64,208.59,7.3]
[1759137913696,4.3125,208.64,208.58,15.73936959]
[1759137913897,4.3119,208.66,208.59,7.3]
[1759137914093,4.3119,208.66,208.6,1.29383415]
[1759137914399,4.3119,208.66,208.61,7.3]
[1759137915698,4.09,208.65,208.6,7.3]
[1759137915897,4.09,208.65,208.58,20.05276959]
[1759137916199,4.3119,208.66,208.59,7.3]
[1759137916899,8.4016,208.68,208.59,7.3]
[1759137917097,8.4016,208.68,208.59,11.6132]
[1759137917297,8.4016,208.68,208.6,8.59383415]
[1759137918197,8.4016,208.68,208.6,7.3]
[1759137918499,8.4016,208.68,208.61,7.3]
[1759137918805,4.09,208.71,208.61,7.3]
[1759137919102,4.09,208.71,208.65,7.3]
[1759137919502,4.3107,208.72,208.65,7.3]
[1759137919894,8.4007,208.72,208.65,7.3]
[1759137920208,4.311,208.71,208.65,7.3]
[1759137924912,4.09,208.72,208.65,7.3]
[1759137927412,4.09,208.72,208.65,11.612]
[1759137927707,4.09,208.72,208.66,7.59]
[1759137928598,8.391,208.71,208.63,6.33366671]
[1759137928806,8.391,208.71,208.64,7.59]
[1759137929311,4.08,208.78,208.64,7.59]
[1759137929509,3.35253881,208.77,208.67,7.59]
[1759137929708,3.35253881,208.77,208.7,7.59]
[1759137930013,4.08,208.81,208.7,7.59]
[1759137930606,8.389,208.81,208.72,4.3106]
[1759137930809,8.389,208.81,208.73,7.59]
[1759137931214,5.58623075,208.8,208.73,7.59]
[1759137932912,4.08,208.79,208.69,7.59]
[1759137934616,4.3098,208.77,208.69,7.59]
[1759137935819,4.31,208.76,208.69,7.59]
[1759137938814,4.31,208.76,208.69,4.3112]
[1759137939019,4.31,208.76,208.7,7.59]
[1759137948321,67.0431,208.77,208.63,7.59]
[1759137948526,4.08,208.75,208.63,7.59]
[1759137948719,2.02116671,208.73,208.63,7.59]
[1759137948925,4.08,208.72,208.63,7.59]
[1759137949625,4.3113,208.7,208.64,7.59]
[1759137952123,8.3915,208.69,208.63,4.3125]
[1759137952822,8.3915,208.69,208.64,7.59]
[1759137953434,8.3915,208.69,208.63,4.3125]
[1759137953629,4.3117,208.68,208.64,7.59]
[1759137953830,4.08,208.67,208.64,7.59]
[1759137954029,4.08,208.67,208.61,4.3129]
[1759137954328,4.3119,208.67,208.62,7.27]
[1759137954530,8.4119,208.67,208.61,4.3129]
[1759137954733,8.4119,208.67,208.62,7.27]
[1759137955136,8.4119,208.67,208.61,4.3129]
[1759137955331,8.4119,208.67,208.62,7.27]
[1759137955635,4.1,208.67,208.63,7.27]
[1759137956043,4.3115,208.69,208.63,7.27]
[1759137957734,4.3117,208.68,208.63,7.27]
[1759137957940,8.4117,208.68,208.63,7.27]
[1759137958831,8.4117,208.68,208.62,4.3127]
[1759137959625,8.4117,208.68,208.63,7.27]
[1759137959830,8.4117,208.68,208.62,4.3127]
[1759137960032,8.4117,208.68,208.63,7.27]
[1759137960440,4.3113,208.7,208.64,7.27]
[1759137961532,4.3113,208.7,208.64,11.5823]
[1759137961736,4.3115,208.69,208.61,2.02116671]
[1759137961940,4.3115,208.69,208.62,7.27]
[1759137962540,4.3115,208.69,208.62,11.5827]
[1759137962845,4.3115,208.69,208.63,7.27]
[1759137964545,4.3115,208.69,208.63,11.5825]
[1759137964843,4.3115,208.69,208.63,4.3125]
[1759137965041,8.4115,208.69,208.64,7.27]
[1759137965943,8.4115,208.69,208.63,4.3125]
[1759137966144,8.4115,208.69,208.64,7.27]
[1759137966345,8.4115,208.69,208.63,4.3125]
[1759137966645,8.4115,208.69,208.64,7.27]
[1759137966944,8.4115,208.69,208.63,4.3125]
[1759137967742,8.4115,208.69,208.64,7.27]
[1759137968345,8.4115,208.69,208.63,4.3125]
[1759137969047,4.3115,208.69,208.63,4.3125]
[1759137969441,8.4115,208.69,208.63,4.3125]
[1759137969747,4.1,208.69,208.64,4.3123]
[1759137970643,4.1,208.74,208.67,4.3117]
[1759137970841,4.1,208.76,208.68,7.27]
[1759137971241,4.1,208.77,208.68,7.27]
[1759137971436,3.34771484,208.77,208.68,7.27]
[1759137971641,4.1,208.76,208.68,7.27]
[1759137972040,4.1,208.78,208.68,7.27]
[1759137972242,3.34762237,208.79,208.68,7.27]
[1759137972645,8.4102,208.75,208.68,11.5814]
[1759137973043,4.1,208.75,208.68,11.5814]
[1759137974545,4.1,208.75,208.69,4.3112]
[1759137975243,4.1,208.75,208.7,7.34]
[1759137975647,8.3995,208.78,208.71,7.34]
[1759137976148,4.09,208.78,208.72,4.3106]
[1759137976549,4.09,208.78,208.73,7.34]
[1759137976849,4.09,208.78,208.72,4.3106]
[1759137977050,4.09,208.78,208.73,7.34]
[1759137977251,4.09,208.78,208.72,4.3106]
[1759137977644,5.58633075,208.8,208.73,7.34]
[1759137977849,4.09,208.79,208.73,7.34]
[1759137979546,120.6288,208.82,208.73,7.34]
[1759137980352,116.32,208.82,208.77,7.34]
[1759137980744,116.32,208.82,208.76,1.29146625]
[1759137981649,116.32,208.82,208.76,5.60126625]
[1759137982256,4.09,208.86,208.79,7.34]
[1759137982554,7.42298734,208.86,208.79,7.34]
[1759137982759,11.73098734,208.86,208.79,7.34]
[1759137982953,8.398,208.86,208.79,7.34]
[1759137983358,8.398,208.86,208.8,1.29146625]
[1759137983653,4.09,208.84,208.8,1.29146625]
[1759137983852,4.09,208.84,208.78,12.94086625]
[1759137985558,4.09,208.84,208.8,7.57]
[1759137985763,4.09,208.84,208.79,4.3092]
[1759137986056,4.09,208.84,208.8,8.86146625]
[1759137986261,4.3077,208.87,208.81,7.57]
[1759137986461,4.3077,208.87,208.82,1.29146625]
[1759137986662,8.4177,208.87,208.83,7.57]
[1759137986964,4.3077,208.87,208.83,7.57]
[1759137987156,4.11,208.86,208.83,7.57]